[Event "Gideon Japhet Cup 2018"]
[Site "Jerusalem"]
[Date "2018.07.05"]
[Round "7"]
[White "Muzychuk, Anna"]
[Black "Meier, Georg"]
[Result "0-1"]
[ECO "C10"]
[WhiteElo "2597"]
[BlackElo "2662"]
[Annotator "ChessBase"]
[PlyCount "122"]
[EventDate "2018.07.02"]
[EventType "tourn"]
[EventCountry "ISR"]
[SourceTitle "playchess.com"]
[Source "ChessBase"]
[SourceQuality "1"]
[TimeControl "1500+10"]

1. e4 {[%emt 0:09:52]} e6 {[%emt 0:09:51]} 2. d4 {[%emt 0:00:02]} d5 {[%emt 0:00:02]} 3. Nc3 {[%emt 0:00:02]} dxe4 {[%emt 0:00:01]} 4. Nxe4 {[%emt 0:00:04]} Nd7 {[%emt 0:00:01]} 5. Nf3 {[%emt 0:00:04]} Ngf6 {[%emt 0:00:02]} 6. Nxf6+ {[%emt 0:00:03]} Nxf6 {[%emt 0:00:02]} 7. Be3 {[%emt 0:00:05]} Nd5 {[%emt 0:00:18]} 8. Bd2 {[%emt 0:00:25]} c5 {[%emt 0:00:02]} 9. Bb5+ {[%emt 0:00:19]} Bd7 {[%emt 0:00:02]} 10. Bxd7+ {[%emt 0:00:05]} Qxd7 {[%emt 0:00:02]} 11. c4 {[%emt 0:00:13]} Nb6 {[%emt 0:00:04]} 12. Rc1 {[%emt 0:00:18]} f6 {[%emt 0:00:04]} 13. dxc5 {[%emt 0:00:47]} Bxc5 {[%emt 0:00:04]} 14. O-O {[%emt 0:00:27]} Rc8 {[%emt 0:00:03]} 15. Qe2 {[%emt 0:00:16]} O-O {[%emt 0:01:01]} 16. Rfd1 {[%emt 0:00:07]} e5 {[%emt 0:00:27]} 17. Bb4 {[%emt 0:00:29]} Qe7 {[%emt 0:01:31]} 18. Bxc5 {[%emt 0:00:04]} Qxc5 {[%emt 0:00:03]} 19. Nd2 {[%emt 0:00:21]} Rfd8 {[%emt 0:01:25]} 20. h4 {[%emt 0:00:13]} Qc6 {[%emt 0:05:45]} 21. c5 {[%emt 0:04:34]} Nd5 {[%emt 0:00:25]} 22. g3 {[%emt 0:01:07]} Ne7 {[%emt 0:01:38]} 23. Ne4 {[%emt 0:00:28]} Nf5 {[%emt 0:00:55]} 24. h5 {[%emt 0:03:43]} Nd4 {[%emt 0:00:27]} 25. Qe3 {[%emt 0:00:03]} Rc7 {[%emt 0:02:16]} 26. Nd6 {[%emt 0:00:50]} Qd5 {[%emt 0:01:28]} 27. b4 {[%emt 0:00:28]} Qxa2 {[%emt 0:00:12]} 28. Kh2 {[%emt 0:02:07]} Qe2 {[%emt 0:00:47]} 29. Qxe2 {[%emt 0:00:33]} Nxe2 {[%emt 0:00:01]} 30. Ra1 {[%emt 0:00:20]} a6 {[%emt 0:00:01]} 31. h6 {[%emt 0:00:18]} Nd4 {[%emt 0:00:44]} 32. hxg7 {[%emt 0:00:03]} Kxg7 {[%emt 0:00:05]} 33. Kg2 {[%emt 0:00:08]} Kg6 {[%emt 0:00:16]} 34. Rh1 {[%emt 0:00:19]} Nf5 {[%emt 0:00:10]} 35. Nxf5 {[%emt 0:00:52]} Kxf5 {[%emt 0:00:02]} 36. Rh5+ {[%emt 0:00:01]} Ke6 {[%emt 0:00:01]} 37. f4 {[%emt 0:00:18]} e4 {[%emt 0:00:04]} 38. Kf2 {[%emt 0:00:13]} Rd3 {[%emt 0:00:15]} 39. Re1 {[%emt 0:00:03]} Rd4 {[%emt 0:00:22]} 40. g4 {[%emt 0:00:28]} Rg7 {[%emt 0:00:19]} 41. g5 {[%emt 0:00:13]} fxg5 {[%emt 0:00:06]} 42. fxg5 {[%emt 0:00:02]} Rxb4 {[%emt 0:00:08]} 43. Rd1 {[%emt 0:00:04]} Rf7+ {[%emt 0:00:22]} 44. Ke2 {[%emt 0:00:04]} a5 {[%emt 0:00:12]} 45. Rd6+ {[%emt 0:00:06]} Ke7 {[%emt 0:00:01]} 46. Rdh6 {[%emt 0:00:08]} a4 {[%emt 0:00:06]} 47. Rxh7 {[%emt 0:00:01]} Rxh7 {[%emt 0:00:02]} 48. Rxh7+ {[%emt 0:00:02]} Ke6 {[%emt 0:00:01]} 49. c6 {[%emt 0:00:46]} bxc6 {[%emt 0:00:04]} 50. Rc7 {[%emt 0:00:04]} Kf5 {[%emt 0:00:30]} 51. Rxc6 {[%emt 0:00:01]} Kxg5 {[%emt 0:00:02]} 52. Ke3 {[%emt 0:00:00]} Kf5 {[%emt 0:00:03]} 53. Rc5+ {[%emt 0:00:07]} Ke6 {[%emt 0:00:01]} 54. Ra5 {[%emt 0:00:14]} Rc4 {[%emt 0:00:04]} 55. Kd2 {[%emt 0:00:39]} Kd6 {[%emt 0:00:02]} 56. Ke3 {[%emt 0:00:13]} Ke6 {[%emt 0:00:20]} 57. Ke2 {[%emt 0:00:04]} Kd7 {[%emt 0:00:02]} 58. Kd2 {[%emt 0:00:05]} Kc6 {[%emt 0:00:02]} 59. Rh5 {[%emt 0:00:20]} Kb6 {[%emt 0:00:01]} 60. Re5 {[%emt 0:00:16]} a3 {[%emt 0:00:07]} 61. Re8 {[%emt 0:00:04]} Ra4 {[%emt 0:00:10]} 0-1

[Event "Gideon Japhet Cup 2018"]
[Site "Jerusalem"]
[Date "2018.07.05"]
[Round "8"]
[White "Meier, Georg"]
[Black "Muzychuk, Anna"]
[Result "1-0"]
[ECO "A06"]
[WhiteElo "2662"]
[BlackElo "2597"]
[Annotator "ChessBase"]
[PlyCount "117"]
[EventDate "2018.07.02"]
[EventType "tourn"]
[EventCountry "ISR"]
[SourceTitle "playchess.com"]
[Source "ChessBase"]
[SourceQuality "1"]
[TimeControl "1500+10"]

1. Nf3 {[%emt 0:09:53]} d5 {[%emt 0:09:51]} 2. g3 {[%emt 0:00:06]} g6 {[%emt 0:00:02]} 3. Bg2 {[%emt 0:00:03]} Bg7 {[%emt 0:00:01]} 4. d4 {[%emt 0:00:02]} Nf6 {[%emt 0:00:03]} 5. c4 {[%emt 0:00:06]} c6 {[%emt 0:00:01]} 6. Qb3 {[%emt 0:00:22]} O-O {[%emt 0:00:10]} 7. O-O {[%emt 0:00:03]} Qb6 {[%emt 0:00:03]} 8. Nc3 {[%emt 0:00:03]} Rd8 {[%emt 0:00:03]} 9. Bd2 {[%emt 0:00:12]} Be6 {[%emt 0:00:31]} 10. Na4 {[%emt 0:01:15]} Qxb3 {[%emt 0:00:09]} 11. axb3 {[%emt 0:00:02]} Nbd7 {[%emt 0:00:23]} 12. Rfc1 {[%emt 0:00:33]} Rac8 {[%emt 0:00:35]} 13. Ba5 {[%emt 0:01:14]} b6 {[%emt 0:00:23]} 14. Be1 {[%emt 0:00:06]} Ne4 {[%emt 0:05:05]} 15. cxd5 {[%emt 0:00:33]} Bxd5 {[%emt 0:01:16]} 16. b4 {[%emt 0:00:03]} e5 {[%emt 0:01:01]} 17. dxe5 {[%emt 0:00:02]} Nxe5 {[%emt 0:00:02]} 18. Nxe5 {[%emt 0:00:05]} Bxe5 {[%emt 0:00:01]} 19. Bxe4 {[%emt 0:00:19]} Bxe4 {[%emt 0:00:04]} 20. Nc3 {[%emt 0:00:03]} Bxc3 {[%emt 0:01:35]} 21. Rxc3 {[%emt 0:04:40]} Rd7 {[%emt 0:00:28]} 22. f3 {[%emt 0:00:46]} Bd5 {[%emt 0:00:08]} 23. g4 {[%emt 0:00:33]} f5 {[%emt 0:00:21]} 24. gxf5 {[%emt 0:00:37]} gxf5 {[%emt 0:00:01]} 25. Bg3 {[%emt 0:00:26]} Re8 {[%emt 0:00:45]} 26. Kf2 {[%emt 0:00:11]} Rde7 {[%emt 0:00:26]} 27. e3 {[%emt 0:00:25]} Rd7 {[%emt 0:00:46]} 28. Bf4 {[%emt 0:00:54]} Ree7 {[%emt 0:00:21]} 29. h4 {[%emt 0:00:31]} Be6 {[%emt 0:01:20]} 30. Rxc6 {[%emt 0:01:58]} Rd2+ {[%emt 0:00:07]} 31. Kg3 {[%emt 0:00:02]} Bd7 {[%emt 0:01:29]} 32. Rf6 {[%emt 0:01:00]} Rg7+ {[%emt 0:02:14]} 33. Bg5 {[%emt 0:00:07]} Be8 {[%emt 0:00:23]} 34. Rc1 {[%emt 0:01:08]} Rf7 {[%emt 0:00:10]} 35. Rc8 {[%emt 0:00:25]} Rxf6 {[%emt 0:00:12]} 36. Bxf6 {[%emt 0:00:03]} Kf7 {[%emt 0:00:03]} 37. Bd4 {[%emt 0:00:15]} a5 {[%emt 0:00:07]} 38. Rc7+ {[%emt 0:00:13]} Ke6 {[%emt 0:00:03]} 39. Rb7 {[%emt 0:01:00]} axb4 {[%emt 0:00:09]} 40. Rxb6+ {[%emt 0:00:02]} Kf7 {[%emt 0:00:03]} 41. Rf6+ {[%emt 0:00:29]} Ke7 {[%emt 0:00:00]} 42. Rxf5 {[%emt 0:00:01]} b3 {[%emt 0:00:01]} 43. Rg5 {[%emt 0:00:14]} Bg6 {[%emt 0:00:04]} 44. h5 {[%emt 0:00:07]} Bc2 {[%emt 0:00:01]} 45. Kf4 {[%emt 0:00:23]} Bd1 {[%emt 0:00:06]} 46. Rg1 {[%emt 0:00:05]} Ke6 {[%emt 0:00:08]} 47. Bc3 {[%emt 0:00:35]} Rd8 {[%emt 0:00:03]} 48. Bg7 {[%emt 0:00:04]} Rd2 {[%emt 0:00:03]} 49. e4 {[%emt 0:00:13]} Rd3 {[%emt 0:00:03]} 50. Rf1 {[%emt 0:00:22]} Be2 {[%emt 0:00:11]} 51. Rf2 {[%emt 0:00:02]} Bd1 {[%emt 0:00:01]} 52. Bf8 {[%emt 0:00:10]} Kf7 {[%emt 0:00:11]} 53. Bc5 {[%emt 0:00:04]} Ke6 {[%emt 0:00:06]} 54. h6 {[%emt 0:00:15]} Kf6 {[%emt 0:00:53]} 55. Be3 {[%emt 0:00:05]} Ke6 {[%emt 0:00:04]} 56. Rd2 {[%emt 0:00:04]} Rxd2 {[%emt 0:00:22]} 57. Bxd2 Kf6 58. Bc3+ {[%emt 0:00:41]} Kg6 {[%emt 0:00:01]} 59. Bg7 {[%emt 0:00:03]} 1-0

[Event "Gideon Japhet Cup 2018"]
[Site "Jerusalem"]
[Date "2018.07.06"]
[Round "9"]
[White "Gelfand, Boris"]
[Black "Muzychuk, Anna"]
[Result "1/2-1/2"]
[ECO "A81"]
[WhiteElo "2674"]
[BlackElo "2597"]
[Annotator "ChessBase"]
[PlyCount "112"]
[EventDate "2018.07.02"]
[EventType "tourn"]
[EventCountry "ISR"]
[SourceTitle "playchess.com"]
[Source "ChessBase"]
[SourceQuality "1"]
[TimeControl "1500+10"]

1. d4 {[%emt 0:09:51]} f5 {[%emt 0:09:52]} 2. g3 {[%emt 0:00:06]} Nf6 {[%emt 0:00:01]} 3. Bg2 {[%emt 0:00:01]} g6 {[%emt 0:00:01]} 4. Nf3 {[%emt 0:00:02]} Bg7 {[%emt 0:00:03]} 5. O-O {[%emt 0:00:02]} O-O {[%emt 0:00:02]} 6. Nbd2 {[%emt 0:00:01]} d6 {[%emt 0:00:16]} 7. Re1 {[%emt 0:00:02]} Nc6 {[%emt 0:01:28]} 8. e4 {[%emt 0:00:16]} fxe4 {[%emt 0:00:35]} 9. Nxe4 {[%emt 0:00:01]} Nxe4 {[%emt 0:00:47]} 10. Rxe4 {[%emt 0:00:01]} Bf5 {[%emt 0:00:10]} 11. Re1 {[%emt 0:01:17]} Qd7 {[%emt 0:05:44]} 12. c3 {[%emt 0:01:47]} Kh8 {[%emt 0:04:22]} 13. Qb3 {[%emt 0:01:38]} Na5 {[%emt 0:00:34]} 14. Qb4 {[%emt 0:02:52]} b6 {[%emt 0:00:04]} 15. d5 {[%emt 0:00:25]} c6 {[%emt 0:01:07]} 16. Qh4 {[%emt 0:01:12]} Bf6 {[%emt 0:01:22]} 17. Bg5 {[%emt 0:00:40]} cxd5 18. Bxf6+ {[%emt 0:00:14]} Rxf6 {[%emt 0:00:28]} 19. Ng5 {[%emt 0:00:12]} h5 {[%emt 0:00:02]} 20. Bxd5 {[%emt 0:00:36]} Raf8 {[%emt 0:00:01]} 21. Ne4 {[%emt 0:00:58]} Bxe4 {[%emt 0:00:10]} 22. Qxe4 {[%emt 0:00:04]} Qf5 {[%emt 0:00:54]} 23. Qxf5 {[%emt 0:01:16]} Rxf5 {[%emt 0:00:01]} 24. Rad1 {[%emt 0:00:01]} b5 {[%emt 0:00:27]} 25. f4 {[%emt 0:00:26]} e5 {[%emt 0:00:05]} 26. Be4 {[%emt 0:01:24]} R5f6 {[%emt 0:00:02]} 27. fxe5 {[%emt 0:00:01]} dxe5 {[%emt 0:00:01]} 28. b3 {[%emt 0:00:01]} Rf2 {[%emt 0:00:10]} 29. Rf1 {[%emt 0:01:31]} Rxf1+ {[%emt 0:00:01]} 30. Rxf1 {[%emt 0:00:00]} Rc8 {[%emt 0:00:01]} 31. Bxg6 {[%emt 0:00:02]} Rxc3 {[%emt 0:00:02]} 32. Bxh5 {[%emt 0:00:06]} Nc6 {[%emt 0:00:03]} 33. Bg6 {[%emt 0:00:15]} Nd4 {[%emt 0:00:14]} 34. Be4 {[%emt 0:00:23]} Re3 {[%emt 0:00:09]} 35. Bd5 {[%emt 0:00:01]} Re2 {[%emt 0:00:12]} 36. Rf2 {[%emt 0:00:18]} Re1+ {[%emt 0:00:09]} 37. Kg2 {[%emt 0:00:02]} a5 {[%emt 0:00:37]} 38. h4 {[%emt 0:00:22]} Kg7 {[%emt 0:00:15]} 39. Kh3 {[%emt 0:00:25]} e4 {[%emt 0:00:16]} 40. Rf7+ {[%emt 0:00:36]} Kh6 {[%emt 0:00:13]} 41. Rf4 {[%emt 0:00:01]} e3 {[%emt 0:00:05]} 42. Rxd4 {[%emt 0:00:02]} e2 {[%emt 0:00:01]} 43. Bf3 {[%emt 0:01:32]} Rh1+ {[%emt 0:00:07]} 44. Bxh1 {[%emt 0:00:02]} e1=Q {[%emt 0:00:02]} 45. Rd6+ {[%emt 0:00:07]} Kg7 {[%emt 0:00:01]} 46. Bg2 {[%emt 0:00:09]} Qe2 {[%emt 0:00:37]} 47. Rd5 {[%emt 0:00:04]} a4 {[%emt 0:00:09]} 48. bxa4 {[%emt 0:00:10]} bxa4 {[%emt 0:00:01]} 49. Rg5+ {[%emt 0:00:07]} Kf6 {[%emt 0:00:15]} 50. Bd5 {[%emt 0:00:01]} Qf1+ {[%emt 0:00:06]} 51. Bg2 {[%emt 0:00:21]} Qe2 {[%emt 0:00:01]} 52. Bd5 {[%emt 0:00:04]} Qf1+ {[%emt 0:00:00]} 53. Kg4 {[%emt 0:00:25]} Qd1+ {[%emt 0:00:34]} 54. Kf4 {[%emt 0:00:06]} Qd4+ {[%emt 0:00:06]} 55. Kf3 {[%emt 0:00:02]} Qd3+ {[%emt 0:00:04]} 56. Kf4 {[%emt 0:00:23]} Qd4+ {[%emt 0:00:01] Ke4 Ke5+} 1/2-1/2

[Event "Gideon Japhet Cup 2018"]
[Site "Jerusalem"]
[Date "2018.07.06"]
[Round "10"]
[White "Muzychuk, Anna"]
[Black "Gelfand, Boris"]
[Result "1/2-1/2"]
[ECO "B33"]
[WhiteElo "2597"]
[BlackElo "2674"]
[Annotator "ChessBase"]
[PlyCount "43"]
[EventDate "2018.07.02"]
[EventType "tourn"]
[EventCountry "ISR"]
[SourceTitle "playchess.com"]
[Source "ChessBase"]
[SourceQuality "1"]
[TimeControl "1500+10"]

1. e4 {[%emt 0:09:52]} c5 {[%emt 0:09:50]} 2. Nf3 {[%emt 0:00:02]} Nc6 {[%emt 0:00:01]} 3. d4 {[%emt 0:00:01]} cxd4 {[%emt 0:00:01]} 4. Nxd4 {[%emt 0:00:01]} Nf6 {[%emt 0:00:01]} 5. Nc3 {[%emt 0:00:02]} e5 {[%emt 0:00:00]} 6. Ndb5 {[%emt 0:00:02]} d6 {[%emt 0:00:01]} 7. Bg5 {[%emt 0:00:03]} a6 {[%emt 0:00:01]} 8. Na3 {[%emt 0:00:03]} b5 {[%emt 0:00:00]} 9. Nd5 {[%emt 0:00:02]} Be7 {[%emt 0:00:04]} 10. Bxf6 {[%emt 0:00:03]} Bxf6 {[%emt 0:00:01]} 11. c4 {[%emt 0:00:03]} b4 {[%emt 0:00:12]} 12. Nc2 {[%emt 0:00:02]} O-O {[%emt 0:00:02]} 13. g3 {[%emt 0:00:14]} Be6 {[%emt 0:00:03]} 14. Bg2 {[%emt 0:00:12]} Bg5 {[%emt 0:01:19]} 15. O-O a5 16. Qd3 {[%emt 0:00:45]} Bxd5 {[%emt 0:00:24]} 17. cxd5 {[%emt 0:00:54]} Nb8 {[%emt 0:00:03]} 18. a3 {[%emt 0:00:09]} Na6 {[%emt 0:00:00]} 19. axb4 {[%emt 0:00:20]} Nxb4 {[%emt 0:00:02]} 20. Nxb4 {[%emt 0:00:02]} axb4 {[%emt 0:00:05]} 21. Qc4 {[%emt 0:00:27]} b3 {[%emt 0:00:49]} 22. Qxb3 {[%emt 0:01:10]} 1/2-1/2